fUST/lending_fUST_20241211
["ID","MTS","AMOUNT","RATE_DAILY","PERIOD"]
[344972116,1733902241195,-500.0,0.0003034,7]
[344972117,1733902241204,-500.0,0.0003034,7]
[344972118,1733902241213,-500.0,0.0003034,7]
[344972119,1733902241223,-500.0,0.0003034,7]
[344972120,1733902241232,-500.0,0.0003034,7]
[344972121,1733902241242,-500.0,0.0003034,7]
[344972122,1733902241251,-500.0,0.0003034,7]
[344972123,1733902241260,-500.0,0.0003034,7]
[344972124,1733902241274,-500.0,0.0003034,7]
[344972125,1733902241283,-500.0,0.0003034,7]
[344972126,1733902241293,-500.0,0.0003034,7]
[344972127,1733902241302,-500.0,0.0003034,7]
[344972128,1733902241311,-316.5,0.0003034,7]
[344972129,1733902241320,-500.0,0.0003034,2]
[344972130,1733902241329,-464.04,0.0003034,2]
[344972131,1733902241338,-647.21,0.0003034,7]
[344972132,1733902241347,-647.21,0.0003034,7]
[344972133,1733902241356,-647.21,0.0003034,7]
[344972134,1733902241365,-647.21,0.0003034,7]
[344972135,1733902241374,-647.21,0.0003034,7]
[344972136,1733902241383,-647.21,0.0003034,7]
[344972137,1733902241392,-647.21,0.0003034,7]
[344972138,1733902241402,-647.21,0.0003034,7]
[344972139,1733902241411,-647.21,0.0003034,7]
[344972140,1733902241420,-647.21,0.0003034,7]
[344972141,1733902241430,-647.21,0.0003034,7]
[344972142,1733902241439,-647.21,0.0003034,7]
[344972143,1733902241448,-647.21,0.0003034,7]
[344972144,1733902241457,-647.21,0.0003034,7]
[344972145,1733902241466,-647.21,0.0003034,7]
[344972146,1733902241476,-647.21,0.0003034,7]
[344972147,1733902241486,-647.21,0.0003034,7]
[344972148,1733902241495,-647.21,0.0003034,7]
[344972149,1733902241504,-647.21,0.0003034,7]
[344972150,1733902241513,-647.21,0.0003034,7]
[344972151,1733902241524,-647.21,0.0003034,7]
[344972152,1733902241533,-647.23,0.0003034,7]
[344972153,1733902241542,-449.34948997,0.0003034,7]
[344972154,1733902241551,-500.0,0.0003034,7]
[344972155,1733902241560,-515.1341677,0.0003034,7]
[344972156,1733902241569,-500.0,0.0003034,7]
[344972157,1733902241578,-512.48,0.0003034,7]
[344972158,1733902241587,-554.77,0.0003034,7]
[344972159,1733902241597,-554.77,0.0003034,7]
[344972160,1733902241606,-554.77,0.0003034,7]
[344972161,1733902241615,-554.77,0.0003034,7]
[344972162,1733902241625,-554.77,0.0003034,7]
[344972163,1733902241634,-554.77,0.0003034,7]
[344972164,1733902241643,-554.77,0.0003034,7]
[344972165,1733902241652,-554.77,0.0003034,7]
[344972166,1733902241661,-554.77,0.0003034,7]
[344972167,1733902241671,-554.77,0.0003034,7]
[344972168,1733902241680,-554.77,0.0003034,7]
[344972169,1733902241689,-554.77,0.0003034,7]
[344972170,1733902241699,-554.77,0.0003034,7]
[344972171,1733902241708,-257.96770153,0.0003034,7]
[344972172,1733902241725,-296.87943968,0.0003034,7]
[344972173,1733902241734,-500.0,0.0003034,7]
[344972174,1733902241743,-500.0,0.0003034,7]
[344972175,1733902241752,-214.01299182,0.0003034,7]
[344972222,1733902243150,-519.59679345,0.00029863,7]
[344972224,1733902243160,-33250.87131518,0.000301,120]
[344979240,1733902488266,166.940941,0.00013973,2]
[344979244,1733903235119,-164.74292569,0.00024224,2]
[344979245,1733903254118,-2.19801531,0.00024224,2]
[344979246,1733903254141,-194.83,0.00026093,2]
[344979247,1733903254163,-177.341,0.00026102,12]
[344979248,1733903254187,-300.0,0.00026102,2]
[344979249,1733903254209,-300.0,0.00026102,2]
[344979250,1733903254233,-459.03010645,0.00026103,2]
[344979252,1733903355070,-5650.624578,0.00026,2]
[344979253,1733903355089,-300.0,0.00026102,2]
[344979254,1733903355111,-300.0,0.00026102,2]
[344979255,1733903355131,-9334.842662,0.00026103,2]
[344979256,1733903358088,-13731.35840725,0.00026103,2]
[344979257,1733903358109,-1287.2664462,0.00026693,2]
[344979258,1733903358130,-152.74473763,0.00026767,2]
[344979259,1733903358150,-3624.81390438,0.00026867,2]
[344979260,1733903359121,-6597.80538662,0.00026867,2]
[344979261,1733903369702,565.304261,0.00026829,2]
[344979299,1733903432058,-463.2566682,0.00026878,2]
[344979301,1733903432067,-152.74473758,0.00027276,2]
[344979303,1733903432077,-513.60166355,0.00027397,2]
[344979305,1733903432087,-227.8775829,0.00027671,2]
[344979307,1733903432096,-1138.34922735,0.00027671,2]
[344979309,1733903432106,-152.74473758,0.00027785,2]
[344979311,1733903432116,-152.74473758,0.00028294,2]
[344979313,1733903432126,-300.0,0.00028307,2]
[344979315,1733903432136,-178.16240718,0.00028307,2]
[344979317,1733903432147,-121.83759282,0.00028307,2]
[344979319,1733903432156,-16877.6633698,0.00028308,2]
[344979321,1733903432166,-195.64022923,0.00028343,2]
[344979323,1733903432176,-10989.94513221,0.00028362,2]
[344979326,1733903432187,-2088.52132399,0.00028362,2]
[344979328,1733903432197,-152.0,0.0002868,2]
[344979330,1733903432206,-152.74473758,0.00028802,2]
[344979332,1733903432216,-381.168,0.0002882,2]
[344979334,1733903432225,-152.74473758,0.00029311,2]
[344979336,1733903432237,-8235.6649244,0.00029321,2]
[344979338,1733903432251,-150.0,0.00029492,2]
[344979340,1733903432261,-8235.6649244,0.0002969,2]
[344979342,1733903432270,-162.9397907,0.00029702,2]
[344979344,1733903432280,-181.64300759,0.00029814,2]
[344979346,1733903432291,-194.83,0.0002982,2]
[344979348,1733903432300,-152.74473758,0.0002982,2]
[344979350,1733903432310,-533.0,0.0002983,2]
[344979352,1733903432321,-2163.0,0.0002983,2]
[344979354,1733903432331,-2370.0,0.0002983,2]
[344979356,1733903432340,-1142.88124201,0.00029862,2]
[344979357,1733903432350,-500.0,0.00029862,2]
[344979358,1733903432360,-500.0,0.00029862,2]
[344979359,1733903432369,-505.46811957,0.00029862,2]
[344979360,1733903432378,-500.0,0.00029862,2]
[344979361,1733903432387,-500.0,0.00029862,2]
[344979362,1733903432397,-500.0,0.00029862,2]
[344979363,1733903432406,-500.0,0.00029862,2]
[344979364,1733903432415,-500.0,0.00029862,2]
[344979365,1733903432426,-500.0,0.00029862,2]
[344979366,1733903432435,-500.0,0.00029862,2]
[344979367,1733903432445,-500.0,0.00029862,2]
[344979368,1733903432454,-500.0,0.00029862,2]
[344979369,1733903432464,-500.0,0.00029862,2]
[344979370,1733903432473,-500.0,0.00029862,2]
[344979371,1733903432486,-500.0,0.00029862,2]
[344979372,1733903432495,-500.0,0.00029862,2]
[344979373,1733903432505,-500.0,0.00029862,2]
[344979374,1733903432514,-500.0,0.00029862,2]
[344979375,1733903432524,-500.0,0.00029862,2]
[344979376,1733903432534,-500.0,0.00029862,2]
[344979377,1733903432543,-500.0,0.00029862,2]
[344979378,1733903432553,-500.0,0.00029862,2]
[344979379,1733903432562,-500.0,0.00029862,2]
[344979380,1733903432572,-500.0,0.00029862,2]
[344979381,1733903432581,-500.0,0.00029862,2]
[344979383,1733903432591,-500.0,0.00029862,2]
[344979385,1733903432600,-500.0,0.00029862,2]
[344979387,1733903432610,-515.68198566,0.00029862,2]
[344979389,1733903432620,-500.0,0.00029862,2]
[344979391,1733903432629,-299.96586813,0.00029862,2]
[344979393,1733903432638,-500.0,0.00029862,2]
[344979395,1733903432648,-500.0,0.00029862,2]
[344979397,1733903432658,-500.0,0.00029862,2]
[344979399,1733903432667,-500.0,0.00029862,2]
[344979401,1733903432676,-500.0,0.00029862,2]
[344979403,1733903432686,-500.0,0.00029862,2]
[344979405,1733903432696,-500.0,0.00029862,2]
[344979407,1733903432706,-500.0,0.00029862,2]
[344979409,1733903432716,-500.0,0.00029862,2]
[344979411,1733903432727,-500.0,0.00029862,2]
[344979413,1733903432738,-500.0,0.00029862,2]
[344979415,1733903432747,-500.0,0.00029862,2]
[344979417,1733903432757,-500.0,0.00029862,2]
[344979419,1733903432768,-500.0,0.00029862,2]
[344979421,1733903432777,-500.0,0.00029862,2]
[344979423,1733903432788,-500.0,0.00029862,2]
[344979425,1733903432797,-500.0,0.00029862,2]
[344979427,1733903432807,-500.0,0.00029862,2]
[344979429,1733903432817,-500.0,0.00029862,2]
[344979431,1733903432827,-500.0,0.00029862,2]
[344979433,1733903432837,-500.0,0.00029862,2]
[344979435,1733903432847,-500.0,0.00029862,2]
[344979437,1733903432856,-500.0,0.00029862,2]
[344979439,1733903432866,-500.0,0.00029862,2]
[344979441,1733903432876,-500.0,0.00029862,2]
[344979443,1733903432886,-500.0,0.00029862,2]
[344979445,1733903432895,-500.0,0.00029862,2]
[344979447,1733903432905,-500.0,0.00029862,2]
[344979449,1733903432915,-410.2846781,0.00029862,2]
[344979451,1733903432925,-500.0,0.00029862,2]
[344979453,1733903432935,-500.0,0.00029862,2]
[344979455,1733903432946,-500.0,0.00029862,2]
[344979457,1733903432956,-500.0,0.00029862,2]
[344979459,1733903432967,-250.0,0.00029862,2]
[344979461,1733903432978,-500.0,0.00029862,7]
[344979463,1733903432993,-334.06269221,0.00029863,7]
[344979465,1733903433009,-500.0,0.00029863,7]
[344979467,1733903433019,-500.0,0.00029863,7]
[344979469,1733903433032,-513.66240585,0.00029863,7]
[344979471,1733903433042,-241.84533184,0.00029863,7]
[344979474,1733903433052,-500.0,0.00029863,7]
[344979476,1733903433063,-500.0,0.00029863,7]
[344979478,1733903433073,-500.0,0.00029863,7]
[344979480,1733903433084,-500.0,0.00029863,7]
[344979482,1733903433094,-507.20542614,0.00029863,7]
[344979484,1733903433104,-500.0,0.00029863,7]
[344979486,1733903433114,-500.0,0.00029863,7]
[344979488,1733903433124,-500.0,0.00029863,7]
[344979489,1733903433133,-500.0,0.00029863,7]
[344979492,1733903433143,-500.0,0.00029863,7]
[344979494,1733903433152,-357.84928084,0.00029863,7]
[344979496,1733903433162,-503.33953758,0.00029863,7]
[344979497,1733903433172,-500.0,0.00029863,7]
[344979499,1733903433182,-500.0,0.00029863,7]
[344979501,1733903433191,-500.0,0.00029863,7]
[344979503,1733903433201,-500.0,0.00029863,7]
[344979505,1733903433211,-185.91056859,0.00029863,7]
[344979507,1733903433220,-500.0,0.00029863,7]
[344979509,1733903433230,-500.0,0.00029863,7]
[344979511,1733903433245,-500.0,0.00029863,7]
[344979513,1733903433254,-500.0,0.00029863,7]
[344979515,1733903433264,-500.0,0.00029863,7]
[344979517,1733903433274,-232.98,0.00029863,7]
[344979519,1733903433284,-500.0,0.00029863,7]
[344979521,1733903433294,-500.0,0.00029863,7]
[344979523,1733903433304,-201.3773916,0.00029863,7]
[344979525,1733903433313,-360.36619786,0.00029863,7]
[344979527,1733903433325,-500.0,0.00029863,7]
[344979529,1733903433334,-500.0,0.00029863,7]
[344979531,1733903433344,-500.0,0.00029863,7]
[344979533,1733903433354,-511.35143946,0.00029863,7]
[344979535,1733903433364,-500.0,0.00029863,7]
[344979537,1733903433374,-500.0,0.00029863,7]
[344979539,1733903433383,-500.0,0.00029863,7]
[344979541,1733903433392,-500.0,0.00029863,7]
[344979543,1733903433401,-500.0,0.00029863,7]
[344979545,1733903433410,-500.0,0.00029863,7]
[344979547,1733903433419,-500.0,0.00029863,7]
[344979549,1733903433428,-513.92,0.00029863,7]
[344979551,1733903433437,-500.0,0.00029863,7]
[344979553,1733903433447,-500.0,0.00029863,7]
[344979555,1733903433456,-500.0,0.00029863,7]
[344979557,1733903433466,-500.0,0.00029863,7]
[344979559,1733903433476,-500.0,0.00029863,7]
[344979561,1733903433487,-309.4,0.00029863,7]
[344979563,1733903433497,-340.63507551,0.00029863,7]
[344979565,1733903433507,-508.76264291,0.00029863,7]
[344979567,1733903433517,-500.0,0.00029863,7]
[344979569,1733903433527,-500.0,0.00029863,7]
[344979571,1733903433536,-500.0,0.00029863,7]
[344979573,1733903433547,-173.67,0.00029863,7]
[344979575,1733903433556,-200.0,0.00029863,7]
[344979576,1733903433566,-500.0,0.00029863,7]
[344979578,1733903433575,-569.29,0.00029863,7]
[344979580,1733903433585,-500.0,0.00029863,7]
[344979582,1733903433594,-500.0,0.00029863,7]
[344979584,1733903433606,-500.0,0.00029863,7]
[344979586,1733903433616,-622.75904203,0.00029863,7]
[344979588,1733903433626,-500.0,0.00029863,7]
[344979589,1733903433635,-500.0,0.00029863,7]
[344979590,1733903433644,-503.12,0.00029863,7]
[344979591,1733903433654,-646.86,0.00029863,7]
[344979592,1733903433664,-500.0,0.00029863,7]
[344979593,1733903433674,-500.0,0.00029863,7]
[344979595,1733903433683,-525.84474567,0.00029863,7]
[344979597,1733903433692,-500.0,0.00029863,7]
[344979598,1733903433702,-500.0,0.00029863,7]
[344979600,1733903433711,-361.28796908,0.00029863,7]
[344979602,1733903433720,-500.0,0.00029863,7]
[344979604,1733903433730,-500.0,0.00029863,7]
[344979606,1733903433744,-500.0,0.00029863,7]
[344979608,1733903433754,-500.0,0.00029863,7]
[344979610,1733903433764,-500.0,0.00029863,7]
[344979611,1733903433773,-500.0,0.00029863,7]
[344979612,1733903433783,-500.0,0.00029863,7]
[344979613,1733903433793,-500.0,0.00029863,7]
[344979614,1733903433802,-442.4,0.00029863,7]
[344979615,1733903433811,-173.04167185,0.00029863,7]
[344979616,1733903433821,-500.0,0.00029863,7]
[344979617,1733903433830,-500.0,0.00029863,7]
[344979618,1733903433839,-500.0,0.00029863,7]
[344979619,1733903433848,-162.28,0.00029863,7]
[344979620,1733903433858,-501.86218377,0.00029863,7]
[344979621,1733903433867,-500.0,0.00029863,7]
[344979622,1733903433876,-500.0,0.00029863,7]
[344979623,1733903433885,-500.0,0.00029863,7]
[344979624,1733903433893,-500.0,0.00029863,7]
[344979625,1733903433901,-500.0,0.00029863,7]
[344979626,1733903433910,-500.0,0.00029863,7]
[344979627,1733903433920,-500.0,0.00029863,7]
[344979628,1733903433929,-500.0,0.00029863,7]
[344979629,1733903433938,-269.19812621,0.00029863,2]
[344979630,1733903433948,-501.92555558,0.00029863,7]
[344979631,1733903433958,-500.0,0.00029863,7]
[344979632,1733903433967,-500.0,0.00029863,7]
[344979633,1733903433978,-500.0,0.00029863,7]
[344979634,1733903433991,-500.0,0.00029863,7]
[344979635,1733903434000,-500.0,0.00029863,7]
[344979636,1733903434010,-500.0,0.00029863,7]
[344979637,1733903434020,-500.0,0.00029863,7]
[344979638,1733903434030,-500.0,0.00029863,7]
[344979639,1733903434039,-500.0,0.00029863,7]
[344979640,1733903434049,-500.0,0.00029863,7]
[344979641,1733903434059,-590.38061701,0.00029863,7]
[344979642,1733903434069,-414.68189332,0.00029863,7]
[344979643,1733903434079,-500.0,0.00029863,7]
[344979644,1733903434088,-500.0,0.00029863,7]
[344979645,1733903434099,-405.1927203,0.00029863,7]
[344979646,1733903434108,-500.0,0.00029863,7]
[344979647,1733903434117,-500.0,0.00029863,7]
[344979648,1733903434128,-500.0,0.00029863,7]
[344979649,1733903434138,-500.0,0.00029863,7]
[344979650,1733903434148,-500.0,0.00029863,7]
[344979651,1733903434158,-500.0,0.00029863,7]
[344979652,1733903434168,-500.0,0.00029863,7]
[344979653,1733903434178,-500.0,0.00029863,7]
[344979654,1733903434188,-611.72,0.00029863,7]
[344979655,1733903434198,-500.0,0.00029863,7]
[344979656,1733903434208,-500.0,0.00029863,7]
[344979657,1733903434219,-500.0,0.00029863,7]
[344979658,1733903434228,-500.0,0.00029863,7]
[344979659,1733903434240,-615.99790262,0.00029863,7]
[344979660,1733903434254,-500.0,0.00029863,7]
[344979661,1733903434264,-507.51494667,0.00029863,7]
[344979662,1733903434274,-500.0,0.00029863,7]
[344979663,1733903434284,-500.0,0.00029863,7]
[344979664,1733903434296,-500.0,0.00029863,7]
[344979665,1733903434306,-500.0,0.00029863,7]
[344979666,1733903434315,-500.0,0.00029863,7]
[344979667,1733903434327,-500.0,0.00029863,7]
[344979668,1733903434336,-500.0,0.00029863,7]
[344979669,1733903434346,-500.0,0.00029863,7]
[344979670,1733903434356,-523.48400304,0.00029863,7]
[344979671,1733903434366,-500.0,0.00029863,7]
[344979672,1733903434376,-509.67,0.00029863,7]
[344979673,1733903434386,-606.46,0.00029863,7]
[344979674,1733903434396,-579.54845139,0.00029863,7]
[344979675,1733903434405,-541.19927374,0.00029863,7]
[344979676,1733903434415,-500.0,0.00029863,7]
[344979677,1733903434425,-500.0,0.00029863,7]
[344979678,1733903434434,-500.0,0.00029863,7]
[344979679,1733903434444,-500.0,0.00029863,7]
[344979680,1733903434454,-500.0,0.00029863,7]
[344979681,1733903434463,-562.46840231,0.00029863,7]
[344979682,1733903434473,-500.0,0.00029863,7]
[344979683,1733903434585,-453.7396116,0.00029863,7]
[344979684,1733903434595,-500.0,0.00029863,7]
[344979685,1733903434605,-500.0,0.00029863,7]
[344979686,1733903434615,-500.0,0.00029863,7]
[344979687,1733903434627,-500.0,0.00029863,7]
[344979688,1733903434637,-504.67638248,0.00029863,7]
[344979689,1733903434647,-500.0,0.00029863,7]
[344979690,1733903434657,-500.0,0.00029863,7]
[344979691,1733903434667,-500.0,0.00029863,7]
[344979692,1733903434678,-500.0,0.00029863,7]
[344979693,1733903434688,-500.0,0.00029863,7]
[344979694,1733903434698,-500.0,0.00029863,7]
[344979695,1733903434707,-200.0,0.00029863,7]
[344979696,1733903434716,-315.96045962,0.00029863,7]
[344979697,1733903434726,-595.18654237,0.00029863,7]
[344979698,1733903434737,-500.0,0.00029863,2]
[344979699,1733903434747,-500.0,0.00029863,2]
[344979700,1733903434756,-500.0,0.00029863,7]
[344979701,1733903434766,-500.0,0.00029863,2]
[344979702,1733903434776,-500.0,0.00029863,7]
[344979703,1733903434786,-500.0,0.00029863,2]
[344979704,1733903434795,-500.0,0.00029863,2]
[344979705,1733903434805,-500.0,0.00029863,2]
[344979706,1733903434815,-500.0,0.00029863,7]
[344979707,1733903434824,-5163.62,0.00029863,7]
[344979708,1733903434834,-5163.62,0.00029863,7]
[344979709,1733903434843,-5163.62,0.00029863,7]
[344979710,1733903434852,-5163.62,0.00029863,7]
[344979711,1733903434861,-5163.62,0.00029863,7]
[344979712,1733903434871,-5163.62,0.00029863,7]
[344979713,1733903434880,-355.20413123,0.00029863,7]
[344979714,1733903434889,-500.0,0.00029863,7]
[344979715,1733903434899,-493.5374803,0.00029863,7]
[344979716,1733903434908,-504.72400964,0.00029863,7]
[344979717,1733903434918,-500.0,0.00029863,7]
[344979718,1733903434928,-500.0,0.00029863,7]
[344979719,1733903434938,-500.0,0.00029863,7]
[344979720,1733903434948,-500.0,0.00029863,7]
[344979721,1733903434958,-500.0,0.00029863,7]
[344979722,1733903434968,-261.2,0.00029863,7]
[344979723,1733903434978,-500.0,0.00029863,7]
[344979724,1733903434990,-500.0,0.00029863,7]
[344979725,1733903435000,-500.0,0.00029863,7]
[344979726,1733903435009,-500.0,0.00029863,7]
[344979727,1733903435019,-500.0,0.00029863,7]
[344979728,1733903435030,-500.0,0.00029863,7]
[344979729,1733903435040,-500.0,0.00029863,7]
[344979730,1733903435050,-566.5,0.00029863,7]
[344979731,1733903435060,-519.28696457,0.00029863,7]
[344979732,1733903435070,-500.0,0.00029863,7]
[344979733,1733903435081,-500.0,0.00029863,7]
[344979734,1733903435091,-500.0,0.00029863,7]
[344979735,1733903435101,-500.0,0.00029863,7]
[344979736,1733903435111,-500.0,0.00029863,7]
[344979737,1733903435122,-500.0,0.00029863,7]
[344979738,1733903435133,-500.0,0.00029863,7]
[344979739,1733903435143,-504.36649153,0.00029863,7]
[344979740,1733903435153,-500.0,0.00029863,7]
[344979741,1733903435163,-315.55833681,0.00029863,7]
[344979742,1733903435173,-500.0,0.00029863,7]
[344979743,1733903435183,-500.0,0.00029863,7]
[344979744,1733903435192,-500.0,0.00029863,7]
[344979745,1733903435202,-182.86909526,0.00029863,7]
[344979746,1733903435212,-500.0,0.00029863,7]
[344979747,1733903435223,-500.0,0.00029863,7]
[344979748,1733903435233,-500.0,0.00029863,7]
[344979749,1733903435250,-500.0,0.00029863,7]
[344979750,1733903435260,-500.0,0.00029863,7]
[344979751,1733903435270,-500.0,0.00029863,7]
[344979752,1733903435279,-403.8841302,0.00029863,7]
[344979753,1733903435290,-500.0,0.00029863,7]
[344979754,1733903435300,-508.41656402,0.00029863,7]
[344979755,1733903435310,-500.0,0.00029863,7]
[344979756,1733903435320,-570.26700818,0.00029863,7]
[344979757,1733903435329,-324.38106424,0.00029863,7]
[344979758,1733903435338,-500.0,0.00029863,7]
[344979759,1733903435347,-500.0,0.00029863,7]
[344979760,1733903435356,-500.0,0.00029863,7]
[344979761,1733903435366,-500.0,0.00029863,7]
[344979762,1733903435375,-500.0,0.00029863,7]
[344979763,1733903435385,-500.0,0.00029863,7]
[344979764,1733903435397,-500.0,0.00029863,7]
[344979765,1733903435406,-500.0,0.00029863,7]
[344979766,1733903435415,-500.0,0.00029863,7]
[344979767,1733903435424,-500.0,0.00029863,7]
[344979768,1733903435434,-500.0,0.00029863,7]
[344979769,1733903435444,-500.0,0.00029863,7]
[344979770,1733903435453,-500.0,0.00029863,7]
[344979771,1733903435463,-500.0,0.00029863,7]
[344979772,1733903435472,-500.0,0.00029863,7]
[344979773,1733903435485,-529.28679984,0.00029863,7]
[344979774,1733903435497,-500.0,0.00029863,7]
[344979775,1733903435508,-500.0,0.00029863,7]
[344979776,1733903435519,-500.0,0.00029863,7]
[344979777,1733903435530,-500.0,0.00029863,7]
[344979778,1733903435540,-500.0,0.00029863,7]
[344979779,1733903435550,-500.0,0.00029863,7]
[344979780,1733903435561,-500.0,0.00029863,7]
[344979781,1733903435570,-500.0,0.00029863,7]
[344979782,1733903435581,-500.0,0.00029863,7]
[344979783,1733903435591,-500.0,0.00029863,7]
[344979784,1733903435600,-528.21,0.00029863,7]
[344979785,1733903435610,-500.0,0.00029863,7]
[344979786,1733903435620,-500.0,0.00029863,7]
[344979787,1733903435630,-500.0,0.00029863,7]
[344979788,1733903435639,-500.0,0.00029863,7]
[344979789,1733903435649,-500.0,0.00029863,7]
[344979790,1733903435660,-509.1331265,0.00029863,7]
[344979791,1733903435670,-500.0,0.00029863,7]
[344979792,1733903435680,-500.0,0.00029863,7]
[344979793,1733903435690,-500.0,0.00029863,7]
[344979794,1733903435700,-500.0,0.00029863,7]
[344979795,1733903435710,-500.0,0.00029863,7]
[344979796,1733903435720,-500.0,0.00029863,7]
[344979797,1733903435730,-500.0,0.00029863,7]
[344979798,1733903435743,-500.0,0.00029863,7]
[344979799,1733903435752,-500.0,0.00029863,7]
[344979800,1733903435763,-500.0,0.00029863,7]
[344979801,1733903435772,-500.0,0.00029863,7]
[344979802,1733903435782,-500.0,0.00029863,7]
[344979803,1733903435792,-500.0,0.00029863,7]
[344979804,1733903435802,-500.0,0.00029863,7]
[344979805,1733903435812,-500.0,0.00029863,7]
[344979806,1733903435822,-500.0,0.00029863,7]
[344979807,1733903435832,-500.0,0.00029863,7]
[344979808,1733903435842,-500.0,0.00029863,7]
[344979809,1733903435852,-367.80742719,0.00029863,7]
[344979810,1733903435862,-557.44213585,0.000299,2]
[344979811,1733903435871,-302.75782099,0.00029949,2]
[344979812,1733903435881,-500.0,0.00029954,2]
[344979813,1733903435891,-5163.62,0.00029954,7]
[344979814,1733903435900,-500.0,0.00029999,7]
[344979815,1733903435910,-500.0,0.00029999,7]
[344979816,1733903435920,-645.66,0.0003,2]
[344979817,1733903435930,-246.0,0.0003,120]
[344979818,1733903435939,-300.0,0.0003,14]
[344979819,1733903435949,-32991.86343205,0.0003,120]
[344979820,1733903435959,-1000.0,0.0003,2]
[344979821,1733903435968,-264.0,0.0003,2]
[344979822,1733903435978,-557.44213585,0.00030007,2]
[344979823,1733903435990,-500.0,0.00030059,7]
[344979824,1733903436000,-557.44213585,0.00030114,2]
[344979825,1733903436010,-151.42684572,0.00030118,11]
[344979826,1733903436020,-8235.66492441,0.0003013,2]
[344979827,1733903436030,-160.0,0.00030198,3]
[344979828,1733903436040,-160.0,0.00030198,5]
[344979829,1733903436049,-1000.0,0.00030218,2]
[344979830,1733903436059,-557.44213585,0.00030221,2]
[344979831,1733903436068,-428.19531603,0.00030239,2]
[344979832,1733903436078,-5163.62,0.00030239,7]
[344979833,1733903436087,-302.75782099,0.00030249,2]
[344979834,1733903436096,-557.44213585,0.00030328,2]
[344979835,1733903436106,-2075.20763962,0.00030329,2]
[344979836,1733903436116,-152.74473758,0.00030329,2]
[344979837,1733903436126,-5163.62,0.00030338,7]
[344979838,1733903436136,-800.78894149,0.00030339,2]
[344979839,1733903436146,-5163.62,0.00030339,7]
[344979840,1733903436155,-500.0,0.00030339,7]
[344979841,1733903436165,-5163.62,0.0003034,7]
[344979842,1733903436175,-500.0,0.0003034,7]
[344979843,1733903436185,-151.0,0.00030341,7]
[344979844,1733903436195,-158.943219,0.00030341,7]
[344979845,1733903436205,-151.0,0.00030341,7]
[344979846,1733903436214,-151.0,0.00030341,7]
[344979847,1733903436224,-151.0,0.00030341,7]
[344979848,1733903436234,-202.0182888,0.00030343,10]
[344979849,1733903436253,-151.28442245,0.00030343,10]
[344979850,1733903436263,-152.96613222,0.00030343,10]
[344979851,1733903436273,-210.45086576,0.00030343,10]
[344979852,1733903436282,-150.14,0.00030343,10]
[344979853,1733903436293,-500.0,0.00030343,10]
[344979854,1733903436303,-500.0,0.00030343,10]
[344979855,1733903436313,-914.16498093,0.00030343,10]
[344979856,1733903436324,-150.14,0.00030343,2]
[344979857,1733903436333,-500.0,0.00030356,7]
[344979858,1733903436343,-5163.62,0.00030357,7]